[Event "*** Titled Tuesday 3|2 Blitz"]
[Site "Chess.com"]
[Date "2015.01.27"]
[Round "2"]
[White "HansCoolNiemann"]
[Black "VovAn1991"]
[Result "0-1"]
[WhiteElo "1708"]
[BlackElo "2450"]
[TimeControl "180+2"]
[EndTime "11:25:31 PST"]
[Termination "VovAn1991 won by checkmate"]

1. d4 {[%clk 0:03:00]} 1... Nf6 {[%clk 0:02:58.1]} 2. c4 {[%clk 0:03:00.9]} 2...
g6 {[%clk 0:02:59]} 3. Nc3 {[%clk 0:03:01.3]} 3... Bg7 {[%clk 0:03:00.2]} 4. e4
{[%clk 0:03:02.5]} 4... d6 {[%clk 0:03:01.1]} 5. Nf3 {[%clk 0:03:03.6]} 5... O-O
{[%clk 0:03:02]} 6. Be2 {[%clk 0:03:04.2]} 6... e5 {[%clk 0:02:56.2]} 7. dxe5
{[%clk 0:03:06.1]} 7... dxe5 {[%clk 0:02:55.6]} 8. Qxd8 {[%clk 0:03:08]} 8...
Rxd8 {[%clk 0:02:57.3]} 9. Bg5 {[%clk 0:03:09.9]} 9... Re8 {[%clk 0:02:42.9]}
10. O-O-O {[%clk 0:03:11.8]} 10... Na6 {[%clk 0:02:38.1]} 11. Ne1 {[%clk
0:03:11.6]} 11... c6 {[%clk 0:02:36.5]} 12. f3 {[%clk 0:03:09.1]} 12... Be6
{[%clk 0:02:29.3]} 13. Nc2 {[%clk 0:03:05.9]} 13... Nh5 {[%clk 0:02:26.2]} 14.
g3 {[%clk 0:03:04.9]} 14... Bf8 {[%clk 0:02:21.1]} 15. Be3 {[%clk 0:03:02.3]}
15... Bc5 {[%clk 0:02:21.3]} 16. Bxc5 {[%clk 0:03:02.6]} 16... Nxc5 {[%clk
0:02:23.2]} 17. b4 {[%clk 0:03:03.3]} 17... Nd7 {[%clk 0:02:21.7]} 18. Rd2
{[%clk 0:03:03.1]} 18... a5 {[%clk 0:02:21.3]} 19. a3 {[%clk 0:03:00.6]} 19...
axb4 {[%clk 0:02:22.3]} 20. axb4 {[%clk 0:03:01.8]} 20... Nb6 {[%clk 0:02:24.2]}
21. c5 {[%clk 0:02:56.8]} 21... Na4 {[%clk 0:02:23.6]} 22. Nb1 {[%clk
0:02:42.3]} 22... f5 {[%clk 0:01:46.8]} 23. exf5 {[%clk 0:02:20]} 23... gxf5
{[%clk 0:01:48.7]} 24. f4 {[%clk 0:02:20.3]} 24... Nf6 {[%clk 0:01:49.7]} 25.
fxe5 {[%clk 0:02:19.5]} 25... Ne4 {[%clk 0:01:49]} 26. Rd4 {[%clk 0:02:14.9]}
26... Nac3 {[%clk 0:01:42.9]} 27. Bh5 {[%clk 0:01:59.9]} 27... Bf7 {[%clk
0:01:31.6]} 28. Bxf7+ {[%clk 0:02:00.2]} 28... Kxf7 {[%clk 0:01:33.5]} 29. Nxc3
{[%clk 0:01:59.9]} 29... Nxc3 {[%clk 0:01:35.4]} 30. Rd7+ {[%clk 0:01:48.6]}
30... Re7 {[%clk 0:01:31.7]} 31. Rxe7+ {[%clk 0:01:40.5]} 31... Kxe7 {[%clk
0:01:33.6]} 32. Kb2 {[%clk 0:01:33.6]} 32... Nd5 {[%clk 0:01:32.6]} 33. Re1
{[%clk 0:01:24.7]} 33... f4 {[%clk 0:01:29.2]} 34. gxf4 {[%clk 0:01:23.2]} 34...
Nxf4 {[%clk 0:01:31.1]} 35. Re4 {[%clk 0:01:22.8]} 35... Ng6 {[%clk 0:01:27.8]}
36. Nd4 {[%clk 0:01:22.4]} 36... Rf8 {[%clk 0:01:27.9]} 37. Re2 {[%clk
0:01:18.5]} 37... Rf4 {[%clk 0:01:26.5]} 38. Kc3 {[%clk 0:01:18.5]} 38... Kd7
{[%clk 0:01:12.6]} 39. Nb3 {[%clk 0:01:09.3]} 39... Ne7 {[%clk 0:01:03.4]} 40.
Rd2+ {[%clk 0:00:51.6]} 40... Nd5+ {[%clk 0:01:03.8]} 41. Kc2 {[%clk 0:00:41]}
41... Ke6 {[%clk 0:01:00.8]} 42. Rd4 {[%clk 0:00:28.4]} 42... Nxb4+ {[%clk
0:00:50.8]} 43. Kd2 {[%clk 0:00:21]} 43... Rxd4+ {[%clk 0:00:50.4]} 44. Nxd4+
{[%clk 0:00:22]} 44... Kxe5 {[%clk 0:00:52.3]} 45. Nb3 {[%clk 0:00:22.5]} 45...
Na6 {[%clk 0:00:49.8]} 46. Kd3 {[%clk 0:00:16.9]} 46... Kd5 {[%clk 0:00:50.6]}
47. Ke3 {[%clk 0:00:17.7]} 47... Nxc5 {[%clk 0:00:52.1]} 48. Nd4 {[%clk
0:00:19.3]} 48... b5 {[%clk 0:00:51.4]} 49. Nc2 {[%clk 0:00:20.3]} 49... Na6
{[%clk 0:00:51.7]} 50. Kd3 {[%clk 0:00:20.5]} 50... b4 {[%clk 0:00:52.5]} 51. h4
{[%clk 0:00:20.2]} 51... Nc5+ {[%clk 0:00:48.5]} 52. Kd2 {[%clk 0:00:19.6]}
52... Kc4 {[%clk 0:00:49.5]} 53. Ne3+ {[%clk 0:00:20.7]} 53... Kb5 {[%clk
0:00:50.5]} 54. Kc2 {[%clk 0:00:21.3]} 54... Ne6 {[%clk 0:00:49.3]} 55. Nf5
{[%clk 0:00:19.8]} 55... c5 {[%clk 0:00:46]} 56. Nd6+ {[%clk 0:00:20.9]} 56...
Ka4 {[%clk 0:00:47.2]} 57. Nc4 {[%clk 0:00:22.8]} 57... Nd4+ {[%clk 0:00:47.9]}
58. Kb2 {[%clk 0:00:24.2]} 58... Kb5 {[%clk 0:00:46.4]} 59. Nd6+ {[%clk
0:00:25.3]} 59... Kc6 {[%clk 0:00:48]} 60. Nc4 {[%clk 0:00:25.1]} 60... Kd5
{[%clk 0:00:49.6]} 61. Ne3+ {[%clk 0:00:26.2]} 61... Ke4 {[%clk 0:00:50.6]} 62.
Nc4 {[%clk 0:00:26.2]} 62... Kf4 {[%clk 0:00:49.9]} 63. h5 {[%clk 0:00:10.6]}
63... Kg5 {[%clk 0:00:47.3]} 64. Ne5 {[%clk 0:00:07.7]} 64... Kxh5 {[%clk
0:00:47.6]} 65. Nd3 {[%clk 0:00:09.2]} 65... Ne6 {[%clk 0:00:48.1]} 66. Kb3
{[%clk 0:00:10.1]} 66... Kg4 {[%clk 0:00:49.3]} 67. Kc4 {[%clk 0:00:11]} 67...
Kf3 {[%clk 0:00:46.4]} 68. Kd5 {[%clk 0:00:11.9]} 68... Ke3 {[%clk 0:00:47.5]}
69. Nb2 {[%clk 0:00:11.4]} 69... h5 {[%clk 0:00:45.4]} 70. Kxe6 {[%clk 0:00:09]}
70... h4 {[%clk 0:00:46.2]} 71. Kd5 {[%clk 0:00:03.9]} 71... h3 {[%clk
0:00:46.8]} 72. Nc4+ {[%clk 0:00:04.9]} 72... Ke2 {[%clk 0:00:46.1]} 73. Nd6
{[%clk 0:00:02.4]} 73... h2 {[%clk 0:00:46.6]} 74. Kxc5 {[%clk 0:00:04.3]} 74...
h1=Q {[%clk 0:00:47.8]} 75. Kxb4 {[%clk 0:00:06.2]} 75... Qd5 {[%clk 0:00:47.5]}
76. Nc4 {[%clk 0:00:07.9]} 76... Kd3 {[%clk 0:00:47.1]} 77. Nb2+ {[%clk
0:00:07.6]} 77... Kd4 {[%clk 0:00:48.3]} 78. Na4 {[%clk 0:00:07.3]} 78... Qc4+
{[%clk 0:00:48.5]} 79. Ka5 {[%clk 0:00:08.2]} 79... Qb3 {[%clk 0:00:43.3]} 80.
Nb6 {[%clk 0:00:06.7]} 80... Kc5 {[%clk 0:00:43.6]} 81. Nd7+ {[%clk 0:00:07.6]}
81... Kc6 {[%clk 0:00:43.5]} 82. Ne5+ {[%clk 0:00:06.6]} 82... Kd6 {[%clk
0:00:44.6]} 83. Ng6 {[%clk 0:00:02.7]} 83... Kc5 {[%clk 0:00:45.4]} 84. Ne5
{[%clk 0:00:03.4]} 84... Qa3# {[%clk 0:00:45.6]} 0-1

[Event "*** Titled Tuesday 3|2 Blitz"]
[Site "Chess.com"]
[Date "2015.01.27"]
[Round "3"]
[White "Gevorg_Harutjunyan"]
[Black "Tomsel"]
[Result "1-0"]
[WhiteElo "2530"]
[BlackElo "2300"]
[TimeControl "180+2"]
[EndTime "11:42:36 PST"]
[Termination "Gevorg_Harutjunyan won by resignation"]

1. e4 {[%clk 0:02:59.2]} 1... c5 {[%clk 0:02:57.8]} 2. Nc3 {[%clk 0:03:00.1]}
2... g6 {[%clk 0:02:55.6]} 3. f4 {[%clk 0:03:00.9]} 3... Bg7 {[%clk 0:02:54.4]}
4. Nf3 {[%clk 0:03:01.9]} 4... Nc6 {[%clk 0:02:55]} 5. Bb5 {[%clk 0:03:02.3]}
5... d6 {[%clk 0:02:14.7]} 6. O-O {[%clk 0:03:00.6]} 6... Bd7 {[%clk 0:02:03.1]}
7. Bxc6 {[%clk 0:03:01.2]} 7... Bxc6 {[%clk 0:02:02.3]} 8. d3 {[%clk 0:03:02.6]}
8... e6 {[%clk 0:00:52.6]} 9. f5 {[%clk 0:02:50.3]} 9... exf5 {[%clk 0:00:36.3]}
10. exf5 {[%clk 0:02:49.4]} 10... Ne7 {[%clk 0:00:37.5]} 11. Qe1 {[%clk
0:02:31.7]} 11... O-O {[%clk 0:00:09.5]} 12. fxg6 {[%clk 0:02:32.2]} 12... Nxg6
{[%clk 0:00:04]} 13. Qg3 {[%clk 0:02:23.5]} 13... Qd7 {[%clk 0:00:04.3]} 14. Bd2
{[%clk 0:02:15.1]} 14... Rae8 {[%clk 0:00:05]} 15. Ng5 {[%clk 0:02:14.2]} 15...
Bd4+ {[%clk 0:00:05]} 16. Kh1 {[%clk 0:02:14.4]} 16... h6 {[%clk 0:00:06.5]} 17.
Nge4 {[%clk 0:02:14.6]} 17... Kh8 {[%clk 0:00:04.5]} 18. Bxh6 {[%clk 0:02:03.9]}
18... Rg8 {[%clk 0:00:05.7]} 19. Bg5 {[%clk 0:01:46.3]} 19... Be5 {[%clk
0:00:04.3]} 20. Bf6+ {[%clk 0:01:41.8]} 20... Kh7 {[%clk 0:00:02.5]} 21. Ng5+
{[%clk 0:01:31.2]} 21... Kh6 {[%clk 0:00:03.4]} 22. Nxf7+ {[%clk 0:01:32.3]}
22... Qxf7 {[%clk 0:00:03.3]} 23. Qg5+ {[%clk 0:01:33.1]} 1-0

[Event "*** Titled Tuesday 3|2 Blitz"]
[Site "Chess.com"]
[Date "2015.01.27"]
[Round "3"]
[White "wonderfultime"]
[Black "petrpalachev"]
[Result "1-0"]
[WhiteElo "2548"]
[BlackElo "2409"]
[TimeControl "180+2"]
[EndTime "11:43:17 PST"]
[Termination "wonderfultime won by resignation"]

1. c4 {[%clk 0:03:00]} 1... e6 {[%clk 0:02:51.9]} 2. Nf3 {[%clk 0:02:58]} 2...
d5 {[%clk 0:02:53]} 3. d4 {[%clk 0:02:58.9]} 3... Nf6 {[%clk 0:02:53.9]} 4. Nc3
{[%clk 0:03:00.1]} 4... c6 {[%clk 0:02:52.9]} 5. e3 {[%clk 0:03:00.5]} 5... Nbd7
{[%clk 0:02:53.8]} 6. Bd3 {[%clk 0:03:01]} 6... dxc4 {[%clk 0:02:54.6]} 7. Bxc4
{[%clk 0:03:02.9]} 7... b5 {[%clk 0:02:52.5]} 8. Bd3 {[%clk 0:03:04.3]} 8... a6
{[%clk 0:02:54]} 9. e4 {[%clk 0:03:04.1]} 9... c5 {[%clk 0:02:55.4]} 10. e5
{[%clk 0:03:05.3]} 10... cxd4 {[%clk 0:02:54.4]} 11. Nxb5 {[%clk 0:03:06.4]}
11... axb5 {[%clk 0:02:53.9]} 12. exf6 {[%clk 0:03:07.4]} 12... gxf6 {[%clk
0:02:54]} 13. O-O {[%clk 0:03:04.1]} 13... Qb6 {[%clk 0:02:54.8]} 14. Qe2 {[%clk
0:03:02.8]} 14... b4 {[%clk 0:02:55.6]} 15. Rd1 {[%clk 0:02:58.1]} 15... Bd6
{[%clk 0:02:44.3]} 16. Be4 {[%clk 0:02:38.6]} 16... Ra5 {[%clk 0:02:43.6]} 17.
Nxd4 {[%clk 0:02:36.5]} 17... Ne5 {[%clk 0:02:07.9]} 18. Nc6 {[%clk 0:02:23.3]}
18... Ba6 {[%clk 0:01:45.8]} 19. Qe1 {[%clk 0:01:40.6]} 19... Nxc6 {[%clk
0:01:01.1]} 20. Rxd6 {[%clk 0:01:40.7]} 20... Bb7 {[%clk 0:01:00.9]} 21. Be3
{[%clk 0:01:33.9]} 21... Qb5 {[%clk 0:00:52.5]} 22. Rad1 {[%clk 0:01:30.6]}
22... O-O {[%clk 0:00:48.6]} 23. Bh6 {[%clk 0:01:28]} 23... Re8 {[%clk 0:00:37]}
24. Bxc6 {[%clk 0:01:21.2]} 24... Bxc6 {[%clk 0:00:37.5]} 25. Qe3 {[%clk
0:01:22.3]} 25... Kh8 {[%clk 0:00:15.5]} 26. Qf4 {[%clk 0:01:05.9]} 1-0

[Event "*** Titled Tuesday 3|2 Blitz"]
[Site "Chess.com"]
[Date "2015.01.27"]
[Round "3"]
[White "FytNob"]
[Black "GulamaliRises"]
[Result "0-1"]
[WhiteElo "1856"]
[BlackElo "2328"]
[TimeControl "180+2"]
[EndTime "11:43:50 PST"]
[Termination "GulamaliRises won on time"]

1. d4 {[%clk 0:03:00]} 1... c5 {[%clk 0:02:59.9]} 2. d5 {[%clk 0:03:00.9]} 2...
d6 {[%clk 0:03:00.9]} 3. c4 {[%clk 0:03:02.5]} 3... g6 {[%clk 0:03:02.8]} 4. Nc3
{[%clk 0:03:03.8]} 4... Bg7 {[%clk 0:03:04.5]} 5. e4 {[%clk 0:03:05.4]} 5... Nf6
{[%clk 0:03:06.1]} 6. f4 {[%clk 0:03:06.6]} 6... O-O {[%clk 0:03:07.5]} 7. Be2
{[%clk 0:03:07.9]} 7... a6 {[%clk 0:03:06]} 8. Nf3 {[%clk 0:03:09.4]} 8... b5
{[%clk 0:03:06.7]} 9. cxb5 {[%clk 0:03:09.2]} 9... axb5 {[%clk 0:03:08.6]} 10.
Bxb5 {[%clk 0:03:09]} 10... Ba6 {[%clk 0:03:09.6]} 11. Bd3 {[%clk 0:02:58.9]}
11... c4 {[%clk 0:03:06.9]} 12. Bc2 {[%clk 0:02:59.4]} 12... Nbd7 {[%clk
0:03:07]} 13. Be3 {[%clk 0:02:58.2]} 13... Qc7 {[%clk 0:03:04.3]} 14. O-O {[%clk
0:02:58.4]} 14... Rfb8 {[%clk 0:03:04.8]} 15. Rb1 {[%clk 0:02:58.1]} 15... Nc5
{[%clk 0:03:06]} 16. Kh1 {[%clk 0:02:56.7]} 16... Nd3 {[%clk 0:03:04.3]} 17.
Bxd3 {[%clk 0:02:45.3]} 17... cxd3 {[%clk 0:03:06.2]} 18. Qd2 {[%clk 0:02:46.7]}
18... Qc4 {[%clk 0:02:47.6]} 19. b3 {[%clk 0:02:40.2]} 19... Qb4 {[%clk
0:02:47.8]} 20. Rfc1 {[%clk 0:02:30.2]} 20... Nxe4 {[%clk 0:02:45.7]} 21. Nxe4
{[%clk 0:02:18.1]} 21... Qxe4 {[%clk 0:02:47.6]} 22. Rc7 {[%clk 0:02:15.4]}
22... h6 {[%clk 0:02:35.3]} 23. Rbc1 {[%clk 0:02:11.3]} 23... Re8 {[%clk
0:02:31.4]} 24. f5 {[%clk 0:01:52.1]} 24... g5 {[%clk 0:02:13.7]} 25. a4 {[%clk
0:01:49.4]} 25... Qxd5 {[%clk 0:02:05.9]} 26. b4 {[%clk 0:01:47.9]} 26... Bc8
{[%clk 0:02:05.5]} 27. a5 {[%clk 0:01:30.4]} 27... Bxf5 {[%clk 0:02:05.1]} 28.
Rb1 {[%clk 0:01:07.5]} 28... Be4 {[%clk 0:02:05]} 29. Ne1 {[%clk 0:01:07.2]}
29... Reb8 {[%clk 0:02:04.9]} 30. Rxe7 {[%clk 0:00:49.3]} 30... Rxa5 {[%clk
0:01:55.5]} 31. Rc1 {[%clk 0:00:36.1]} 31... Ra2 {[%clk 0:01:54.7]} 32. Rcc7
{[%clk 0:00:14.1]} 32... Rxd2 {[%clk 0:01:53.2]} 33. Bxd2 {[%clk 0:00:16]} 33...
Bf6 {[%clk 0:01:51.4]} 34. Red7 {[%clk 0:00:16.2]} 34... Bf5 {[%clk 0:01:42.3]}
35. Rxf7 {[%clk 0:00:14.2]} 35... Qxf7 {[%clk 0:01:35]} 36. Rxf7 {[%clk
0:00:16.1]} 36... Kxf7 {[%clk 0:01:36.9]} 37. Nf3 {[%clk 0:00:08]} 37... d5
{[%clk 0:01:34.9]} 38. Kg1 {[%clk 0:00:07.9]} 38... Be4 {[%clk 0:01:21.7]} 39.
Kf2 {[%clk 0:00:03.9]} 39... Bxf3 {[%clk 0:01:21.7]} 40. Kxf3 {[%clk 0:00:05.2]}
40... Be7 {[%clk 0:01:23.4]} 0-1

[Event "*** Titled Tuesday 3|2 Blitz"]
[Site "Chess.com"]
[Date "2015.01.27"]
[Round "3"]
[White "KingOfConvenience"]
[Black "gumersindo"]
[Result "1-0"]
[WhiteElo "2359"]
[BlackElo "2107"]
[TimeControl "180+2"]
[EndTime "11:43:56 PST"]
[Termination "KingOfConvenience won by checkmate"]

1. c4 {[%clk 0:03:00]} 1... c6 {[%clk 0:02:57.4]} 2. Nf3 {[%clk 0:03:00.2]} 2...
d5 {[%clk 0:02:58.1]} 3. g3 {[%clk 0:03:01.4]} 3... Nf6 {[%clk 0:02:59.4]} 4.
Bg2 {[%clk 0:03:02.6]} 4... g6 {[%clk 0:03:01]} 5. b3 {[%clk 0:03:01.5]} 5...
Bg7 {[%clk 0:03:01.9]} 6. Bb2 {[%clk 0:03:02.6]} 6... O-O {[%clk 0:03:02.9]} 7.
O-O {[%clk 0:03:03.6]} 7... b6 {[%clk 0:03:02.2]} 8. d4 {[%clk 0:03:03.1]} 8...
Bb7 {[%clk 0:03:02.5]} 9. Nbd2 {[%clk 0:03:03.9]} 9... Nbd7 {[%clk 0:02:58.3]}
10. Qc2 {[%clk 0:03:04.9]} 10... Rc8 {[%clk 0:02:58.2]} 11. e4 {[%clk
0:02:59.7]} 11... dxe4 {[%clk 0:02:58.1]} 12. Nxe4 {[%clk 0:03:00.6]} 12... c5
{[%clk 0:02:58.8]} 13. Nxf6+ {[%clk 0:02:57.9]} 13... Bxf6 {[%clk 0:02:56.7]}
14. d5 {[%clk 0:02:58.7]} 14... Bxb2 {[%clk 0:02:56.6]} 15. Qxb2 {[%clk
0:02:59.8]} 15... Nf6 {[%clk 0:02:56.4]} 16. Rfe1 {[%clk 0:02:58.2]} 16... Qd6
{[%clk 0:02:52.2]} 17. Rad1 {[%clk 0:02:49]} 17... Rcd8 {[%clk 0:02:50.5]} 18.
Qc1 {[%clk 0:02:39.7]} 18... Kg7 {[%clk 0:02:49.3]} 19. Qc3 {[%clk 0:02:32.5]}
19... Kg8 {[%clk 0:02:49.2]} 20. Rd2 {[%clk 0:02:32.1]} 20... a5 {[%clk
0:02:41.3]} 21. Rde2 {[%clk 0:02:31.9]} 21... Rfe8 {[%clk 0:02:36.5]} 22. h3
{[%clk 0:02:31.1]} 22... Ra8 {[%clk 0:02:32.5]} 23. a4 {[%clk 0:02:22.9]} 23...
Rad8 {[%clk 0:02:31.7]} 24. Re3 {[%clk 0:02:18.9]} 24... Bc8 {[%clk 0:02:28.2]}
25. Ne5 {[%clk 0:02:18]} 25... Bb7 {[%clk 0:02:28.4]} 26. Nd3 {[%clk 0:02:09.6]}
26... Bc8 {[%clk 0:02:20.9]} 27. Nf4 {[%clk 0:02:10.3]} 27... Kg7 {[%clk
0:02:17.1]} 28. Re5 {[%clk 0:02:10.1]} 28... Kg8 {[%clk 0:02:07.7]} 29. Qe3
{[%clk 0:02:09]} 29... Kf8 {[%clk 0:02:05.8]} 30. Kh2 {[%clk 0:02:01.2]} 30...
Rd7 {[%clk 0:01:53.5]} 31. Bf3 {[%clk 0:02:01.7]} 31... Rc7 {[%clk 0:01:52.5]}
32. Qc3 {[%clk 0:01:46.1]} 32... Kg7 {[%clk 0:01:50.5]} 33. Kg2 {[%clk
0:01:45.6]} 33... Kg8 {[%clk 0:01:49.7]} 34. h4 {[%clk 0:01:46.5]} 34... Ng4
{[%clk 0:01:40.8]} 35. Bxg4 {[%clk 0:01:39.9]} 35... Bxg4 {[%clk 0:01:41]} 36.
h5 {[%clk 0:01:37.4]} 36... f6 {[%clk 0:01:39.8]} 37. R5e3 {[%clk 0:01:34.4]}
37... g5 {[%clk 0:01:39.5]} 38. Ne6 {[%clk 0:01:34.3]} 38... Rb7 {[%clk
0:01:31.4]} 39. h6 {[%clk 0:01:33.9]} 39... Bxe6 {[%clk 0:01:17.3]} 40. Rxe6
{[%clk 0:01:34.6]} 40... Qd7 {[%clk 0:01:16.9]} 41. Qf3 {[%clk 0:01:33.3]} 41...
Rbb8 {[%clk 0:01:15.8]} 42. Qh5 {[%clk 0:01:31.3]} 42... Rbd8 {[%clk 0:01:08.2]}
43. Kg1 {[%clk 0:01:28.2]} 43... Kf8 {[%clk 0:01:02.7]} 44. R1e4 {[%clk
0:01:24.3]} 44... Qc7 {[%clk 0:01:00]} 45. Kg2 {[%clk 0:01:19.7]} 45... Rd6
{[%clk 0:00:56.6]} 46. f4 {[%clk 0:01:18.3]} 46... Rxe6 {[%clk 0:00:56]} 47.
dxe6 {[%clk 0:01:15.5]} 47... Qc6 {[%clk 0:00:54.9]} 48. Qf7# {[%clk 0:01:15.8]}
1-0

[Event "*** Titled Tuesday 3|2 Blitz"]
[Site "Chess.com"]
[Date "2015.01.27"]
[Round "3"]
[White "andryusha"]
[Black "PauloCesarCosta"]
[Result "1-0"]
[WhiteElo "2041"]
[BlackElo "2024"]
[TimeControl "180+2"]
[EndTime "11:44:02 PST"]
[Termination "andryusha won on time"]

1. e4 {[%clk 0:03:00]} 1... e6 {[%clk 0:02:57.1]} 2. d4 {[%clk 0:03:00.8]} 2...
d5 {[%clk 0:02:58.5]} 3. Nc3 {[%clk 0:03:01.9]} 3... Nf6 {[%clk 0:02:58.7]} 4.
Bg5 {[%clk 0:03:01.9]} 4... Be7 {[%clk 0:02:59]} 5. e5 {[%clk 0:03:03]} 5...
Nfd7 {[%clk 0:03:00.1]} 6. h4 {[%clk 0:03:04.2]} 6... Bxg5 {[%clk 0:02:57.1]} 7.
hxg5 {[%clk 0:03:05.1]} 7... Qxg5 {[%clk 0:02:58.6]} 8. Nf3 {[%clk 0:03:06]}
8... Qe7 {[%clk 0:03:00.1]} 9. Nb5 {[%clk 0:03:01.9]} 9... Nb6 {[%clk
0:02:41.5]} 10. a4 {[%clk 0:03:00.6]} 10... a6 {[%clk 0:02:38.6]} 11. Nc3 {[%clk
0:03:01.4]} 11... Qb4 {[%clk 0:02:33.8]} 12. Qd3 {[%clk 0:02:57]} 12... Qxb2
{[%clk 0:02:29.3]} 13. Rb1 {[%clk 0:02:57.5]} 13... Qa3 {[%clk 0:02:26]} 14. Be2
{[%clk 0:02:41.7]} 14... Nc6 {[%clk 0:02:22.4]} 15. Rb3 {[%clk 0:02:35.1]} 15...
Qc1+ {[%clk 0:02:19.9]} 16. Bd1 {[%clk 0:02:35.2]} 16... Na5 {[%clk 0:02:11.6]}
17. Rb1 {[%clk 0:02:02.5]} 17... Qa3 {[%clk 0:02:12]} 18. O-O {[%clk 0:01:43.5]}
18... O-O {[%clk 0:02:11.4]} 19. Ng5 {[%clk 0:01:41.4]} 19... g6 {[%clk
0:02:06.6]} 20. Qh3 {[%clk 0:01:40.2]} 20... h5 {[%clk 0:02:02.5]} 21. Bxh5
{[%clk 0:01:41.1]} 21... Qe7 {[%clk 0:01:55.2]} 22. Bg4 {[%clk 0:01:40]} 22...
Qxg5 {[%clk 0:01:52.1]} 23. f4 {[%clk 0:01:36.5]} 23... Qe7 {[%clk 0:01:49.9]}
24. Rxb6 {[%clk 0:01:24.4]} 24... cxb6 {[%clk 0:01:48.3]} 25. f5 {[%clk
0:01:26]} 25... Re8 {[%clk 0:01:35.2]} 26. f6 {[%clk 0:01:19.4]} 26... Qf8
{[%clk 0:01:29.5]} 27. Kf2 {[%clk 0:01:03.5]} 27... Qb4 {[%clk 0:01:15.7]} 28.
Ne2 {[%clk 0:00:58.8]} 28... Qa3 {[%clk 0:00:09.1]} 29. Qxa3 {[%clk 0:00:50.6]}
29... Nc4 {[%clk 0:00:08.4]} 30. Qh3 {[%clk 0:00:50.8]} 30... Nd2 {[%clk
0:00:02.8]} 31. Rh1 {[%clk 0:00:51]} 31... Ne4+ {[%clk 0:00:03.5]} 32. Ke3
{[%clk 0:00:52.3]} 1-0

[Event "*** Titled Tuesday 3|2 Blitz"]
[Site "Chess.com"]
[Date "2015.01.27"]
[Round "3"]
[White "TooOldTooSlow70"]
[Black "Dlugy"]
[Result "1-0"]
[WhiteElo "2332"]
[BlackElo "2560"]
[TimeControl "180+2"]
[EndTime "11:44:08 PST"]
[Termination "TooOldTooSlow70 won by checkmate"]

1. Nf3 {[%clk 0:03:00]} 1... d5 {[%clk 0:02:58.7]} 2. d4 {[%clk 0:03:00.8]} 2...
c5 {[%clk 0:02:59.8]} 3. c4 {[%clk 0:03:02]} 3... cxd4 {[%clk 0:03:00.9]} 4.
cxd5 {[%clk 0:03:03]} 4... Nf6 {[%clk 0:03:02.4]} 5. Qxd4 {[%clk 0:03:03.8]}
5... Qxd5 {[%clk 0:03:03.5]} 6. Nc3 {[%clk 0:03:04.4]} 6... Qxd4 {[%clk
0:03:05.1]} 7. Nxd4 {[%clk 0:03:05.9]} 7... Bd7 {[%clk 0:03:06.9]} 8. g3 {[%clk
0:03:04.9]} 8... Nc6 {[%clk 0:03:08]} 9. Be3 {[%clk 0:02:53.3]} 9... Ng4 {[%clk
0:03:08.6]} 10. Bg2 {[%clk 0:02:36.3]} 10... Nxe3 {[%clk 0:03:09.1]} 11. fxe3
{[%clk 0:02:38.2]} 11... Rc8 {[%clk 0:03:09.6]} 12. Nxc6 {[%clk 0:02:36]} 12...
Bxc6 {[%clk 0:03:10.4]} 13. Bxc6+ {[%clk 0:02:36.5]} 13... Rxc6 {[%clk
0:03:11.5]} 14. Kf2 {[%clk 0:02:36.8]} 14... e6 {[%clk 0:03:11.8]} 15. Rac1
{[%clk 0:02:32.2]} 15... a6 {[%clk 0:02:40.7]} 16. Ne4 {[%clk 0:02:26.7]} 16...
Rxc1 {[%clk 0:02:25.8]} 17. Rxc1 {[%clk 0:02:28.6]} 17... Kd7 {[%clk 0:02:26.5]}
18. Rd1+ {[%clk 0:02:25.9]} 18... Kc7 {[%clk 0:02:27.7]} 19. Rc1+ {[%clk
0:02:13.5]} 19... Kb8 {[%clk 0:02:28.2]} 20. Rd1 {[%clk 0:02:12.7]} 20... Be7
{[%clk 0:02:29.3]} 21. h4 {[%clk 0:01:45.8]} 21... Rc8 {[%clk 0:02:23]} 22. Rd7
{[%clk 0:01:45.2]} 22... Rc7 {[%clk 0:02:24.3]} 23. Rxc7 {[%clk 0:01:42]} 23...
Kxc7 {[%clk 0:02:25.4]} 24. h5 {[%clk 0:01:29.2]} 24... Kc6 {[%clk 0:02:17]} 25.
Kf3 {[%clk 0:01:27.7]} 25... Kd5 {[%clk 0:02:18]} 26. g4 {[%clk 0:00:56.7]}
26... Ke5 {[%clk 0:02:12.2]} 27. Nd2 {[%clk 0:00:42.2]} 27... Bb4 {[%clk
0:01:56.4]} 28. Nb3 {[%clk 0:00:40]} 28... Kd5 {[%clk 0:01:52.8]} 29. e4+ {[%clk
0:00:35.9]} 29... Kc4 {[%clk 0:01:43.2]} 30. Nc1 {[%clk 0:00:21.3]} 30... Bc5
{[%clk 0:01:41.4]} 31. e3 {[%clk 0:00:15.2]} 31... Bd6 {[%clk 0:01:41.7]} 32.
Ke2 {[%clk 0:00:15.9]} 32... Be5 {[%clk 0:01:42.6]} 33. Nd3 {[%clk 0:00:17.5]}
33... Bd6 {[%clk 0:01:37.7]} 34. Kd2 {[%clk 0:00:16.2]} 34... f6 {[%clk
0:01:23.8]} 35. Kc2 {[%clk 0:00:16.4]} 35... g5 {[%clk 0:01:07.2]} 36. a4 {[%clk
0:00:14.6]} 36... b5 {[%clk 0:00:46.4]} 37. b3# {[%clk 0:00:14.5]} 1-0

[Event "*** Titled Tuesday 3|2 Blitz"]
[Site "Chess.com"]
[Date "2015.01.27"]
[Round "3"]
[White "vovkcoach"]
[Black "BeerLag"]
[Result "1-0"]
[WhiteElo "2458"]
[BlackElo "2205"]
[TimeControl "180+2"]
[EndTime "11:44:09 PST"]
[Termination "vovkcoach won on time"]

1. e4 {[%clk 0:02:06]} 1... c5 {[%clk 0:02:56.5]} 2. Nf3 {[%clk 0:02:07.9]} 2...
d6 {[%clk 0:02:58.1]} 3. d4 {[%clk 0:02:09.7]} 3... cxd4 {[%clk 0:03:00]} 4.
Nxd4 {[%clk 0:02:11.6]} 4... Nf6 {[%clk 0:03:01.1]} 5. Nc3 {[%clk 0:02:13.5]}
5... a6 {[%clk 0:03:02.6]} 6. Bg5 {[%clk 0:02:14.8]} 6... e6 {[%clk 0:03:03.5]}
7. Qf3 {[%clk 0:02:16.4]} 7... Be7 {[%clk 0:03:02.5]} 8. O-O-O {[%clk
0:02:17.8]} 8... Qc7 {[%clk 0:03:03]} 9. Be2 {[%clk 0:02:17.5]} 9... b5 {[%clk
0:02:59.6]} 10. Bxf6 {[%clk 0:02:08.5]} 10... gxf6 {[%clk 0:03:00.7]} 11. e5
{[%clk 0:02:05.3]} 11... Bb7 {[%clk 0:02:58.1]} 12. Qh5 {[%clk 0:02:07.2]} 12...
dxe5 {[%clk 0:02:14.1]} 13. Nxe6 {[%clk 0:02:08.2]} 13... Qa5 {[%clk 0:02:13.3]}
14. Bf3 {[%clk 0:01:57.5]} 14... Nc6 {[%clk 0:02:08.1]} 15. Nd5 {[%clk
0:01:50.4]} 15... Rc8 {[%clk 0:01:56.4]} 16. Ng7+ {[%clk 0:01:45.1]} 16... Kf8
{[%clk 0:01:57.6]} 17. Qh6 {[%clk 0:01:46.8]} 17... Nb4 {[%clk 0:01:15.9]} 18.
a3 {[%clk 0:00:57]} 18... Bxd5 {[%clk 0:00:38]} 19. Bxd5 {[%clk 0:00:38.9]}
19... Rxc2+ {[%clk 0:00:17.8]} 20. Kb1 {[%clk 0:00:40.8]} 20... Rxb2+ {[%clk
0:00:19.4]} 21. Kxb2 {[%clk 0:00:42.7]} 21... Nxd5 {[%clk 0:00:21]} 22. Nf5+
{[%clk 0:00:21]} 1-0